[Event "Late-Titled-Tuesday-Blitz-September-05-2023"]
[Site "Chess.com"]
[Date "2023.09.05"]
[Round "1"]
[White "MeisterJabo"]
[Black "JackRodgers"]
[Result "0-1"]
[WhiteElo "2304"]
[BlackElo "2603"]
[TimeControl "180+1"]
[EndTime "14:09:36 PDT"]
[Termination "JackRodgers won on time"]

1. c4 {[%clk 0:02:59.9]} 1... c5 {[%clk 0:02:59.7]} 2. g3 {[%clk 0:02:58.3]}
2... g6 {[%clk 0:02:59.9]} 3. Bg2 {[%clk 0:02:57.6]} 3... Bg7 {[%clk 0:03:00.3]}
4. Nc3 {[%clk 0:02:58.5]} 4... Nf6 {[%clk 0:03:00.5]} 5. a3 {[%clk 0:02:59]}
5... O-O {[%clk 0:02:59.9]} 6. b4 {[%clk 0:02:58.6]} 6... d6 {[%clk 0:02:57.8]}
7. Nf3 {[%clk 0:02:54.1]} 7... a6 {[%clk 0:02:57.5]} 8. O-O {[%clk 0:02:53.5]}
8... Qc7 {[%clk 0:02:58]} 9. Qb3 {[%clk 0:02:36.5]} 9... Nc6 {[%clk 0:02:50.7]}
10. Bb2 {[%clk 0:02:32.9]} 10... Rb8 {[%clk 0:02:46.8]} 11. d3 {[%clk
0:02:32.2]} 11... Bg4 {[%clk 0:02:40.8]} 12. b5 {[%clk 0:02:30.1]} 12... Bxf3
{[%clk 0:02:37.5]} 13. exf3 {[%clk 0:02:16.4]} 13... Nd4 {[%clk 0:02:37.3]} 14.
Qd1 {[%clk 0:02:13.9]} 14... a5 {[%clk 0:02:28.6]} 15. Rb1 {[%clk 0:02:02.5]}
15... e6 {[%clk 0:02:13.9]} 16. a4 {[%clk 0:02:01.2]} 16... b6 {[%clk
0:02:13.6]} 17. Re1 {[%clk 0:01:59.1]} 17... Rfe8 {[%clk 0:02:13.4]} 18. Ne4
{[%clk 0:01:49.8]} 18... Nxe4 {[%clk 0:02:11.7]} 19. fxe4 {[%clk 0:01:48.1]}
19... e5 {[%clk 0:02:00.2]} 20. f4 {[%clk 0:01:35.3]} 20... exf4 {[%clk
0:01:58.7]} 21. gxf4 {[%clk 0:01:34.2]} 21... Qe7 {[%clk 0:01:55.2]} 22. Kh1
{[%clk 0:00:51.8]} 22... Qh4 {[%clk 0:01:47.1]} 23. Bxd4 {[%clk 0:00:47.2]}
23... Bxd4 {[%clk 0:01:46.1]} 24. Qf3 {[%clk 0:00:47.5]} 24... Bc3 {[%clk
0:01:34.1]} 25. Re2 {[%clk 0:00:42.7]} 25... Re7 {[%clk 0:01:29.1]} 26. Qg3
{[%clk 0:00:42.6]} 26... Qf6 {[%clk 0:01:24.3]} 27. Rf1 {[%clk 0:00:42]} 27...
Rd8 {[%clk 0:01:22.4]} 28. Ref2 {[%clk 0:00:38.9]} 28... Bd4 {[%clk 0:01:21.9]}
29. Rf3 {[%clk 0:00:38.2]} 29... Qg7 {[%clk 0:01:15.9]} 30. h4 {[%clk 0:00:33]}
30... f6 {[%clk 0:01:07.3]} 31. Bh3 {[%clk 0:00:27.1]} 31... Rf8 {[%clk
0:01:01.5]} 32. Kg2 {[%clk 0:00:26.7]} 32... f5 {[%clk 0:00:54.4]} 33. exf5
{[%clk 0:00:24.1]} 33... Re2+ {[%clk 0:00:54.2]} 34. Kh1 {[%clk 0:00:24.2]}
34... gxf5 {[%clk 0:00:52.8]} 35. Qxg7+ {[%clk 0:00:23.3]} 35... Kxg7 {[%clk
0:00:53.1]} 36. Rg3+ {[%clk 0:00:23.2]} 36... Kf6 {[%clk 0:00:42.9]} 37. Rg5
{[%clk 0:00:19.8]} 37... Ke6 {[%clk 0:00:40.5]} 38. Rf3 {[%clk 0:00:16.2]} 38...
Re3 {[%clk 0:00:38.3]} 39. Kg2 {[%clk 0:00:14.7]} 39... Rxf3 {[%clk 0:00:38.6]}
40. Kxf3 {[%clk 0:00:15.6]} 40... Bc3 {[%clk 0:00:35]} 41. Rh5 {[%clk
0:00:15.4]} 41... Rf7 {[%clk 0:00:33.7]} 42. Rh6+ {[%clk 0:00:15.4]} 42... Bf6
{[%clk 0:00:29.8]} 43. Rh5 {[%clk 0:00:15.8]} 43... Bd4 {[%clk 0:00:27.6]} 44.
Rh6+ {[%clk 0:00:16.1]} 44... Ke7 {[%clk 0:00:26.9]} 45. Rh5 {[%clk 0:00:15]}
45... Ke6 {[%clk 0:00:17.7]} 46. Rh6+ {[%clk 0:00:15.2]} 46... Bf6 {[%clk
0:00:16.2]} 47. Rh5 {[%clk 0:00:14.9]} 47... Be7 {[%clk 0:00:16.1]} 48. Rh6+
{[%clk 0:00:15.3]} 48... Kd7 {[%clk 0:00:15.7]} 49. Rh5 {[%clk 0:00:15.7]} 49...
Ke6 {[%clk 0:00:15.3]} 50. Rh6+ {[%clk 0:00:16.1]} 50... Rf6 {[%clk 0:00:15.8]}
51. Rxh7 {[%clk 0:00:15.2]} 51... Rf7 {[%clk 0:00:09.5]} 52. Rh6+ {[%clk
0:00:12.7]} 52... Rf6 {[%clk 0:00:09.5]} 53. Rh8 {[%clk 0:00:12.8]} 53... Rf7
{[%clk 0:00:08.6]} 54. h5 {[%clk 0:00:12]} 54... Kf6 {[%clk 0:00:08.6]} 55. Rb8
{[%clk 0:00:10.5]} 55... Rh7 {[%clk 0:00:06.9]} 56. Rxb6 {[%clk 0:00:08.3]}
56... Rxh5 {[%clk 0:00:07.5]} 57. Bg2 {[%clk 0:00:08.7]} 57... Rh8 {[%clk
0:00:04.2]} 58. Ra6 {[%clk 0:00:08.7]} 58... Bd8 {[%clk 0:00:03.3]} 59. Rxd6+
{[%clk 0:00:08.4]} 59... Ke7 {[%clk 0:00:03]} 60. Rd5 {[%clk 0:00:09.2]} 60...
Ke6 {[%clk 0:00:03.2]} 61. Re5+ {[%clk 0:00:07.7]} 61... Kd6 {[%clk 0:00:03.2]}
62. Rxf5 {[%clk 0:00:08]} 62... Be7 {[%clk 0:00:03.2]} 63. Rd5+ {[%clk
0:00:07.9]} 63... Ke6 {[%clk 0:00:03.9]} 64. Kg3 {[%clk 0:00:05.5]} 64... Bh4+
{[%clk 0:00:04.2]} 65. Kf3 {[%clk 0:00:05.7]} 65... Be7 {[%clk 0:00:05.1]} 66.
f5+ {[%clk 0:00:06.2]} 66... Kf6 {[%clk 0:00:05.1]} 67. Kf2 {[%clk 0:00:04.9]}
67... Rh4 {[%clk 0:00:05.4]} 68. Be4 {[%clk 0:00:04.9]} 68... Rf4+ {[%clk
0:00:05.8]} 69. Kg3 {[%clk 0:00:05]} 69... Rf1 {[%clk 0:00:04]} 70. Rd7 {[%clk
0:00:05.2]} 70... Rg1+ {[%clk 0:00:04.3]} 71. Kf2 {[%clk 0:00:05.1]} 71... Ra1
{[%clk 0:00:05.2]} 72. b6 {[%clk 0:00:05.6]} 72... Rxa4 {[%clk 0:00:04.9]} 73.
b7 {[%clk 0:00:06.5]} 73... Rb4 {[%clk 0:00:05.6]} 74. Rd5 {[%clk 0:00:02]}
74... a4 {[%clk 0:00:05.8]} 75. d4 {[%clk 0:00:02.4]} 75... a3 {[%clk
0:00:04.7]} 76. Rd7 {[%clk 0:00:01.8]} 76... a2 {[%clk 0:00:04.2]} 77. b8=Q
{[%clk 0:00:02.7]} 77... Rxb8 {[%clk 0:00:02.9]} 78. Ra7 {[%clk 0:00:03.6]}
78... cxd4 {[%clk 0:00:03.3]} 79. Rxa2 {[%clk 0:00:03.4]} 79... Ke5 {[%clk
0:00:03]} 80. Kf3 {[%clk 0:00:03.7]} 80... Rb3+ {[%clk 0:00:02.9]} 81. Kg4
{[%clk 0:00:04.2]} 81... Kxe4 {[%clk 0:00:03.3]} 82. Re2+ {[%clk 0:00:04.7]}
82... Re3 {[%clk 0:00:02]} 83. Ra2 {[%clk 0:00:02.6]} 83... d3 {[%clk
0:00:01.1]} 84. Ra8 {[%clk 0:00:01.8]} 84... Bc5 {[%clk 0:00:01.8]} 85. Re8+
{[%clk 0:00:01.4]} 85... Kd4 {[%clk 0:00:02.7]} 0-1

[Event "Late-Titled-Tuesday-Blitz-September-05-2023"]
[Site "Chess.com"]
[Date "2023.09.05"]
[Round "1"]
[White "Evandro_Barbosa"]
[Black "Jenia84"]
[Result "1/2-1/2"]
[WhiteElo "2627"]
[BlackElo "2340"]
[TimeControl "180+1"]
[EndTime "14:09:47 PDT"]
[Termination "Game drawn by repetition"]

1. e4 {[%clk 0:03:00.9]} 1... c5 {[%clk 0:02:56.7]} 2. Nf3 {[%clk 0:03:00.9]}
2... d6 {[%clk 0:02:56.5]} 3. Bb5+ {[%clk 0:03:01.1]} 3... Nd7 {[%clk
0:02:55.9]} 4. d4 {[%clk 0:03:00.7]} 4... cxd4 {[%clk 0:02:53.9]} 5. Qxd4 {[%clk
0:03:01.6]} 5... a6 {[%clk 0:02:51.1]} 6. Bxd7+ {[%clk 0:03:01.2]} 6... Bxd7
{[%clk 0:02:52]} 7. c4 {[%clk 0:03:00.7]} 7... Nf6 {[%clk 0:02:51.7]} 8. Bg5
{[%clk 0:02:59.7]} 8... h6 {[%clk 0:02:51.8]} 9. Bxf6 {[%clk 0:02:59.6]} 9...
exf6 {[%clk 0:02:52]} 10. O-O {[%clk 0:02:58.9]} 10... g6 {[%clk 0:02:51.3]} 11.
Nc3 {[%clk 0:02:58.7]} 11... Be6 {[%clk 0:02:48]} 12. Rad1 {[%clk 0:02:56.1]}
12... Rc8 {[%clk 0:02:46.8]} 13. b3 {[%clk 0:02:55.8]} 13... Bg7 {[%clk
0:02:34.5]} 14. Qxd6 {[%clk 0:02:52.6]} 14... Qxd6 {[%clk 0:02:34]} 15. Rxd6
{[%clk 0:02:53.1]} 15... b5 {[%clk 0:02:34.4]} 16. Rxa6 {[%clk 0:02:40.4]} 16...
bxc4 {[%clk 0:02:34.4]} 17. b4 {[%clk 0:02:35.4]} 17... f5 {[%clk 0:02:22.9]}
18. e5 {[%clk 0:02:35]} 18... O-O {[%clk 0:02:21.2]} 19. Re1 {[%clk 0:02:33.7]}
19... Rfd8 {[%clk 0:02:20.3]} 20. h4 {[%clk 0:02:24.8]} 20... Rd3 {[%clk
0:02:18.6]} 21. Re3 {[%clk 0:02:25.1]} 21... f4 {[%clk 0:02:14.3]} 22. Rxd3
{[%clk 0:02:25.1]} 22... cxd3 {[%clk 0:02:14.6]} 23. Ne4 {[%clk 0:02:25.5]}
23... Bd5 {[%clk 0:02:01.8]} 24. Ned2 {[%clk 0:02:18.3]} 24... Rc2 {[%clk
0:01:47.6]} 25. Rd6 {[%clk 0:02:12.6]} 25... Bxa2 {[%clk 0:01:33.7]} 26. Rxd3
{[%clk 0:02:11.6]} 26... Bf8 {[%clk 0:01:33.4]} 27. Rd8 {[%clk 0:02:06.5]} 27...
Kg7 {[%clk 0:01:32.1]} 28. Rb8 {[%clk 0:02:05.1]} 28... Rb2 {[%clk 0:01:28.6]}
29. b5 {[%clk 0:02:04.6]} 29... Bd5 {[%clk 0:01:29.1]} 30. b6 {[%clk 0:01:09.6]}
30... Bb4 {[%clk 0:01:27.7]} 31. Rd8 {[%clk 0:01:05.4]} 31... Bb7 {[%clk
0:01:01.1]} 32. Rd7 {[%clk 0:01:03]} 32... Bc6 {[%clk 0:00:53.7]} 33. Rc7 {[%clk
0:01:01.2]} 33... Bd5 {[%clk 0:00:51.3]} 34. b7 {[%clk 0:00:44.1]} 34... Bxd2
{[%clk 0:00:48.3]} 35. Nxd2 {[%clk 0:00:33.4]} 35... Rxb7 {[%clk 0:00:45.6]} 36.
Rc5 {[%clk 0:00:28.4]} 36... Rd7 {[%clk 0:00:38.3]} 37. Nb1 {[%clk 0:00:21.5]}
37... g5 {[%clk 0:00:28.7]} 38. hxg5 {[%clk 0:00:20.5]} 38... hxg5 {[%clk
0:00:28.9]} 39. Nc3 {[%clk 0:00:20.5]} 39... Bb7 {[%clk 0:00:27.9]} 40. f3
{[%clk 0:00:19.7]} 40... Kg6 {[%clk 0:00:27.8]} 41. Rb5 {[%clk 0:00:18.7]} 41...
Kf5 {[%clk 0:00:21.9]} 42. e6+ {[%clk 0:00:18.3]} 42... Kxe6 {[%clk 0:00:21.7]}
43. Rxg5 {[%clk 0:00:18.8]} 43... f6 {[%clk 0:00:21.8]} 44. Rb5 {[%clk
0:00:18.6]} 44... Bc6 {[%clk 0:00:19.7]} 45. Rb4 {[%clk 0:00:18.4]} 45... Ke5
{[%clk 0:00:18.3]} 46. Kf2 {[%clk 0:00:18.7]} 46... Rd2+ {[%clk 0:00:17.7]} 47.
Ne2 {[%clk 0:00:19]} 47... Bd5 {[%clk 0:00:16.5]} 48. Ke1 {[%clk 0:00:19.1]}
48... Ra2 {[%clk 0:00:16.6]} 49. Nxf4 {[%clk 0:00:19]} 49... Ra1+ {[%clk
0:00:14.9]} 50. Kf2 {[%clk 0:00:19.2]} 50... Ra2+ {[%clk 0:00:15.2]} 51. Kg3
{[%clk 0:00:19.3]} 51... Rd2 {[%clk 0:00:15.5]} 52. Ng6+ {[%clk 0:00:17.2]}
52... Kf5 {[%clk 0:00:15.2]} 53. Ne7+ {[%clk 0:00:17.4]} 53... Ke6 {[%clk
0:00:14.9]} 54. Ng6 {[%clk 0:00:17.1]} 54... f5 {[%clk 0:00:14.9]} 55. Nf4+
{[%clk 0:00:16.9]} 55... Kf7 {[%clk 0:00:14.3]} 56. Rb5 {[%clk 0:00:16.8]} 56...
Be6 {[%clk 0:00:14.8]} 57. Rb7+ {[%clk 0:00:15.9]} 57... Bd7 {[%clk 0:00:15.1]}
58. Rb6 {[%clk 0:00:15.2]} 58... Ke7 {[%clk 0:00:15.5]} 59. Rh6 {[%clk
0:00:15.3]} 59... Kf7 {[%clk 0:00:15.9]} 60. Rh5 {[%clk 0:00:14]} 60... Kf6
{[%clk 0:00:15.9]} 61. Rh7 {[%clk 0:00:14]} 61... Rd4 {[%clk 0:00:13.1]} 62. Rh8
{[%clk 0:00:13.1]} 62... Rd2 {[%clk 0:00:12.9]} 63. Rd8 {[%clk 0:00:12.6]} 63...
Ke7 {[%clk 0:00:13.2]} 64. Ra8 {[%clk 0:00:12.6]} 64... Kf6 {[%clk 0:00:13.5]}
65. Ra5 {[%clk 0:00:12.1]} 65... Ke7 {[%clk 0:00:12]} 66. Nd5+ {[%clk
0:00:11.9]} 66... Kf7 {[%clk 0:00:10.8]} 67. Nf4 {[%clk 0:00:10.3]} 67... Ke7
{[%clk 0:00:10.9]} 68. Rc5 {[%clk 0:00:10.8]} 68... Kf7 {[%clk 0:00:10.6]} 69.
Rc1 {[%clk 0:00:09.8]} 69... Ke7 {[%clk 0:00:10.5]} 70. Re1+ {[%clk 0:00:09]}
70... Kf6 {[%clk 0:00:10.9]} 71. Re3 {[%clk 0:00:08.4]} 71... Kf7 {[%clk
0:00:09.9]} 72. Ne2 {[%clk 0:00:07.9]} 72... Bb5 {[%clk 0:00:09]} 73. Nc3 {[%clk
0:00:06.9]} 73... Bf1 {[%clk 0:00:09]} 74. Kf4 {[%clk 0:00:05.4]} 74... Rxg2
{[%clk 0:00:09]} 75. Kxf5 {[%clk 0:00:05.2]} 75... Rc2 {[%clk 0:00:09.1]} 76.
Kf4 {[%clk 0:00:05.1]} 76... Bc4 {[%clk 0:00:08.7]} 77. Ne4 {[%clk 0:00:05.3]}
77... Bd5 {[%clk 0:00:07.5]} 78. Ng5+ {[%clk 0:00:05.1]} 78... Kf6 {[%clk
0:00:07.5]} 79. Nh7+ {[%clk 0:00:04.5]} 79... Kg7 {[%clk 0:00:07.4]} 80. Ng5
{[%clk 0:00:05]} 80... Kf6 {[%clk 0:00:07.8]} 81. Ne4+ {[%clk 0:00:04.5]} 81...
Bxe4 {[%clk 0:00:07.7]} 82. Rxe4 {[%clk 0:00:04.7]} 82... Rc5 {[%clk 0:00:07.6]}
83. Ra4 {[%clk 0:00:05.1]} 83... Rc6 {[%clk 0:00:06.8]} 84. Kg4 {[%clk
0:00:05.6]} 84... Rb6 {[%clk 0:00:05.9]} 85. f4 {[%clk 0:00:06.2]} 85... Rc6
{[%clk 0:00:06.5]} 86. Ra5 {[%clk 0:00:06.6]} 86... Rb6 {[%clk 0:00:06.9]} 87.
Rh5 {[%clk 0:00:07]} 87... Kg6 {[%clk 0:00:07]} 88. Rg5+ {[%clk 0:00:07.2]}
88... Kf6 {[%clk 0:00:07.2]} 89. Rc5 {[%clk 0:00:07.8]} 89... Kg6 {[%clk
0:00:07.3]} 90. Rc1 {[%clk 0:00:08.3]} 90... Kf6 {[%clk 0:00:07.5]} 91. Rh1
{[%clk 0:00:08.9]} 91... Rb5 {[%clk 0:00:07.5]} 92. Rh6+ {[%clk 0:00:08.8]}
92... Kg7 {[%clk 0:00:07.8]} 93. Ra6 {[%clk 0:00:09.3]} 93... Kf7 {[%clk
0:00:07.9]} 94. f5 {[%clk 0:00:09.7]} 94... Rb1 {[%clk 0:00:04.5]} 95. Ra7+
{[%clk 0:00:08.8]} 95... Kf6 {[%clk 0:00:04.1]} 96. Ra6+ {[%clk 0:00:09.1]}
96... Kf7 {[%clk 0:00:04.2]} 97. Ra4 {[%clk 0:00:07.9]} 97... Kf6 {[%clk
0:00:03.9]} 98. Ra6+ {[%clk 0:00:06.9]} 98... Kf7 {[%clk 0:00:03.6]} 1/2-1/2

[Event "Late-Titled-Tuesday-Blitz-September-05-2023"]
[Site "Chess.com"]
[Date "2023.09.05"]
[Round "2"]
[White "IMGC"]
[Black "JesseFebruary"]
[Result "1-0"]
[WhiteElo "2403"]
[BlackElo "1946"]
[TimeControl "180+1"]
[EndTime "14:12:14 PDT"]
[Termination "IMGC won by resignation"]

1. Nf3 {[%clk 0:02:59.7]} 1... d5 {[%clk 0:02:56.6]} 2. g3 {[%clk 0:03:00.6]}
2... c5 {[%clk 0:02:56.2]} 3. Bg2 {[%clk 0:03:00.1]} 3... Nc6 {[%clk 0:02:56.7]}
4. O-O {[%clk 0:03:00.8]} 4... g6 {[%clk 0:02:56.8]} 5. d3 {[%clk 0:03:01.7]}
5... Bg7 {[%clk 0:02:56.9]} 6. Nbd2 {[%clk 0:03:01.2]} 6... Bg4 {[%clk
0:02:56.6]} 7. e4 {[%clk 0:03:02.1]} 7... d4 {[%clk 0:02:56]} 8. h3 {[%clk
0:03:02.1]} 8... Bd7 {[%clk 0:02:50.1]} 9. a4 {[%clk 0:02:57.5]} 9... e5 {[%clk
0:02:50]} 10. Nc4 {[%clk 0:02:57.9]} 10... Rb8 {[%clk 0:02:43.2]} 11. Nd6+
{[%clk 0:02:56.5]} 11... Ke7 {[%clk 0:02:43.1]} 12. Nc4 {[%clk 0:02:56.4]} 12...
f6 {[%clk 0:02:32.5]} 13. Nh2 {[%clk 0:02:54.9]} 13... Nh6 {[%clk 0:02:30.3]}
14. f4 {[%clk 0:02:53.9]} 14... Re8 {[%clk 0:02:25.3]} 15. fxe5 {[%clk
0:02:52.6]} 15... Nxe5 {[%clk 0:02:25.5]} 16. Nxe5 {[%clk 0:02:51.6]} 16... fxe5
{[%clk 0:02:26.4]} 17. Bg5+ {[%clk 0:02:51.4]} 1-0

[Event "Late-Titled-Tuesday-Blitz-September-05-2023"]
[Site "Chess.com"]
[Date "2023.09.05"]
[Round "2"]
[White "Amirreza_p"]
[Black "Rud_Makarian"]
[Result "0-1"]
[WhiteElo "2573"]
[BlackElo "2950"]
[TimeControl "180+1"]
[EndTime "14:12:51 PDT"]
[Termination "Rud_Makarian won by resignation"]

1. e4 {[%clk 0:03:00.9]} 1... c5 {[%clk 0:03:00.1]} 2. c3 {[%clk 0:03:00.5]}
2... d5 {[%clk 0:02:59.9]} 3. exd5 {[%clk 0:03:00.2]} 3... Nf6 {[%clk
0:03:00.6]} 4. Bb5+ {[%clk 0:02:57.7]} 4... Nbd7 {[%clk 0:03:00.1]} 5. d4 {[%clk
0:02:55.9]} 5... a6 {[%clk 0:02:59]} 6. Be2 {[%clk 0:02:54.1]} 6... Nxd5 {[%clk
0:02:59]} 7. Nf3 {[%clk 0:02:52.8]} 7... e6 {[%clk 0:02:59.2]} 8. O-O {[%clk
0:02:52]} 8... b5 {[%clk 0:02:55.7]} 9. a4 {[%clk 0:02:49.8]} 9... b4 {[%clk
0:02:56]} 10. c4 {[%clk 0:02:48.9]} 10... N5f6 {[%clk 0:02:56.3]} 11. b3 {[%clk
0:02:48.7]} 11... Bb7 {[%clk 0:02:56.2]} 12. Bb2 {[%clk 0:02:48.6]} 12... Be7
{[%clk 0:02:56.8]} 13. Nbd2 {[%clk 0:02:48.4]} 13... O-O {[%clk 0:02:57.4]} 14.
Re1 {[%clk 0:02:46.2]} 14... Qc7 {[%clk 0:02:57.3]} 15. Nf1 {[%clk 0:02:38.8]}
15... Rad8 {[%clk 0:02:52.6]} 16. Ng3 {[%clk 0:02:37.9]} 16... h6 {[%clk
0:02:48.9]} 17. Qc2 {[%clk 0:02:36.6]} 17... cxd4 {[%clk 0:02:48.8]} 18. Bxd4
{[%clk 0:02:35.5]} 18... Nc5 {[%clk 0:02:33.2]} 19. Rad1 {[%clk 0:02:33.2]}
19... a5 {[%clk 0:02:33.8]} 20. Ne5 {[%clk 0:02:27.4]} 20... Rxd4 {[%clk
0:02:32.6]} 21. Rxd4 {[%clk 0:02:22.5]} 21... Qxe5 {[%clk 0:02:33.1]} 22. Qd2
{[%clk 0:02:19.3]} 22... Nxb3 {[%clk 0:02:32.5]} 0-1

[Event "Late-Titled-Tuesday-Blitz-September-05-2023"]
[Site "Chess.com"]
[Date "2023.09.05"]
[Round "2"]
[White "PNEPaul"]
[Black "Sulthankan"]
[Result "0-1"]
[WhiteElo "1884"]
[BlackElo "2403"]
[TimeControl "180+1"]
[EndTime "14:13:36 PDT"]
[Termination "Sulthankan won by resignation"]

1. e4 {[%clk 0:03:00.9]} 1... c5 {[%clk 0:02:58.6]} 2. Nf3 {[%clk 0:03:00.6]}
2... d6 {[%clk 0:02:59.4]} 3. d4 {[%clk 0:03:00.6]} 3... cxd4 {[%clk 0:03:00.3]}
4. c3 {[%clk 0:03:00.9]} 4... Nf6 {[%clk 0:03:01.2]} 5. Bd3 {[%clk 0:02:59.5]}
5... g6 {[%clk 0:02:59.3]} 6. Bf4 {[%clk 0:02:58.8]} 6... Bg7 {[%clk 0:02:59.3]}
7. Qe2 {[%clk 0:02:58.7]} 7... O-O {[%clk 0:02:57]} 8. cxd4 {[%clk 0:02:58.8]}
8... Bg4 {[%clk 0:02:55.8]} 9. h3 {[%clk 0:02:58.6]} 9... Bxf3 {[%clk
0:02:56.4]} 10. Qxf3 {[%clk 0:02:58.6]} 10... Nc6 {[%clk 0:02:57.2]} 11. Be3
{[%clk 0:02:36.2]} 11... Nd7 {[%clk 0:02:56.5]} 12. O-O {[%clk 0:02:29]} 12...
Nxd4 {[%clk 0:02:51.9]} 13. Bxd4 {[%clk 0:02:28.2]} 13... Bxd4 {[%clk
0:02:52.8]} 14. Nc3 {[%clk 0:02:28.3]} 14... Ne5 {[%clk 0:02:51.6]} 15. Qg3
{[%clk 0:02:27.1]} 15... Bxc3 {[%clk 0:02:44.1]} 16. bxc3 {[%clk 0:02:26.3]}
16... Rc8 {[%clk 0:02:45]} 17. Rac1 {[%clk 0:02:24.4]} 17... Qb6 {[%clk
0:02:44]} 18. Bb1 {[%clk 0:02:23]} 18... Qb2 {[%clk 0:02:35.2]} 19. Kh2 {[%clk
0:02:11.5]} 19... Rc5 {[%clk 0:02:22.6]} 20. f4 {[%clk 0:02:10.2]} 20... Nd7
{[%clk 0:02:20]} 21. Qg5 {[%clk 0:01:54.1]} 21... Rxg5 {[%clk 0:02:05]} 0-1

[Event "Late-Titled-Tuesday-Blitz-September-05-2023"]
[Site "Chess.com"]
[Date "2023.09.05"]
[Round "2"]
[White "delqate"]
[Black "BeanScreen"]
[Result "0-1"]
[WhiteElo "2375"]
[BlackElo "2702"]
[TimeControl "180+1"]
[EndTime "14:13:52 PDT"]
[Termination "BeanScreen won by resignation"]

1. d4 {[%clk 0:03:00.9]} 1... d5 {[%clk 0:02:12.2]} 2. Nf3 {[%clk 0:03:00]} 2...
e6 {[%clk 0:02:12]} 3. Bg5 {[%clk 0:02:59.7]} 3... Be7 {[%clk 0:02:11.6]} 4.
Bxe7 {[%clk 0:03:00.1]} 4... Qxe7 {[%clk 0:02:11.7]} 5. c4 {[%clk 0:03:00.7]}
5... Nf6 {[%clk 0:02:11.2]} 6. e3 {[%clk 0:03:00.9]} 6... O-O {[%clk 0:02:10.5]}
7. Nc3 {[%clk 0:03:01.6]} 7... Nbd7 {[%clk 0:02:09.7]} 8. cxd5 {[%clk
0:03:02.3]} 8... exd5 {[%clk 0:02:09.5]} 9. Bd3 {[%clk 0:03:03]} 9... b6 {[%clk
0:02:08.6]} 10. O-O {[%clk 0:03:03.7]} 10... Bb7 {[%clk 0:02:08.9]} 11. Re1
{[%clk 0:03:03.9]} 11... Ne4 {[%clk 0:02:05.1]} 12. Nd2 {[%clk 0:02:59.6]} 12...
f5 {[%clk 0:02:03.2]} 13. Bxe4 {[%clk 0:02:51.9]} 13... fxe4 {[%clk 0:02:00.2]}
14. Qb3 {[%clk 0:02:52.4]} 14... Qf7 {[%clk 0:01:39.9]} 15. Rac1 {[%clk
0:02:45.1]} 15... Qxf2+ {[%clk 0:01:39.4]} 16. Kh1 {[%clk 0:02:44.3]} 16... Qxd2
{[%clk 0:01:39]} 17. Nxd5 {[%clk 0:02:42.8]} 17... Kh8 {[%clk 0:01:31.2]} 18.
Nxc7 {[%clk 0:02:30.7]} 18... Rac8 {[%clk 0:01:30.7]} 19. Rcd1 {[%clk
0:02:21.6]} 19... Qa5 {[%clk 0:01:30.3]} 20. Ne6 {[%clk 0:02:19.8]} 20... Bd5
{[%clk 0:01:29.2]} 0-1

[Event "Late-Titled-Tuesday-Blitz-September-05-2023"]
[Site "Chess.com"]
[Date "2023.09.05"]
[Round "2"]
[White "ArtemDyachuk"]
[Black "KVAIDAN"]
[Result "1-0"]
[WhiteElo "2556"]
[BlackElo "2236"]
[TimeControl "180+1"]
[EndTime "14:14:25 PDT"]
[Termination "ArtemDyachuk won by checkmate"]

1. d4 {[%clk 0:03:00.9]} 1... e6 {[%clk 0:02:56.8]} 2. e4 {[%clk 0:02:57.7]}
2... f5 {[%clk 0:02:57.7]} 3. exf5 {[%clk 0:02:57.4]} 3... exf5 {[%clk
0:02:57.9]} 4. Bd3 {[%clk 0:02:54]} 4... d5 {[%clk 0:02:57.5]} 5. Nf3 {[%clk
0:02:50.2]} 5... Nf6 {[%clk 0:02:56.8]} 6. O-O {[%clk 0:02:49.7]} 6... Be7
{[%clk 0:02:55.5]} 7. c4 {[%clk 0:02:48.7]} 7... c6 {[%clk 0:02:52.3]} 8. Nc3
{[%clk 0:02:48.7]} 8... O-O {[%clk 0:02:50.2]} 9. Re1 {[%clk 0:02:48.2]} 9...
Ne4 {[%clk 0:02:49.2]} 10. cxd5 {[%clk 0:02:47.9]} 10... cxd5 {[%clk 0:02:46.6]}
11. Qb3 {[%clk 0:02:47.8]} 11... Nxc3 {[%clk 0:02:43.8]} 12. bxc3 {[%clk
0:02:47.1]} 12... Nc6 {[%clk 0:02:42.4]} 13. Ba3 {[%clk 0:02:05.3]} 13... Bxa3
{[%clk 0:02:39.6]} 14. Qxa3 {[%clk 0:02:06.2]} 14... b6 {[%clk 0:02:39.8]} 15.
Bb5 {[%clk 0:01:59.2]} 15... Bb7 {[%clk 0:02:35.2]} 16. h4 {[%clk 0:01:54.6]}
16... a6 {[%clk 0:02:30]} 17. Bxc6 {[%clk 0:01:53.8]} 17... Bxc6 {[%clk
0:02:29.8]} 18. Re6 {[%clk 0:01:48.4]} 18... Qc8 {[%clk 0:02:21.1]} 19. Rae1
{[%clk 0:01:41.8]} 19... Bb5 {[%clk 0:02:17.1]} 20. Re7 {[%clk 0:01:39.6]} 20...
Qc4 {[%clk 0:02:11.6]} 21. Qd6 {[%clk 0:01:37.6]} 21... Qxc3 {[%clk 0:02:08.7]}
22. Qxd5+ {[%clk 0:01:33.9]} 22... Kh8 {[%clk 0:02:07.8]} 23. Ng5 {[%clk
0:01:33.7]} 23... h6 {[%clk 0:02:01.4]} 24. Qe5 {[%clk 0:01:28.6]} 24... Rae8
{[%clk 0:01:51.1]} 25. Qxg7# {[%clk 0:01:26.8]} 1-0

[Event "Late-Titled-Tuesday-Blitz-September-05-2023"]
[Site "Chess.com"]
[Date "2023.09.05"]
[Round "2"]
[White "Mariia89"]
[Black "vanyakuba"]
[Result "0-1"]
[WhiteElo "1965"]
[BlackElo "2405"]
[TimeControl "180+1"]
[EndTime "14:14:39 PDT"]
[Termination "vanyakuba won by resignation"]

1. d4 {[%clk 0:02:59.5]} 1... d5 {[%clk 0:02:59.8]} 2. c4 {[%clk 0:02:54.9]}
2... e6 {[%clk 0:02:59.1]} 3. Nc3 {[%clk 0:02:54.5]} 3... c5 {[%clk 0:02:58.7]}
4. cxd5 {[%clk 0:02:54.1]} 4... cxd4 {[%clk 0:02:58.6]} 5. Nf3 {[%clk 0:02:55]}
5... dxc3 {[%clk 0:02:58]} 6. bxc3 {[%clk 0:02:54.9]} 6... Qxd5 {[%clk
0:02:56.6]} 7. Qc2 {[%clk 0:02:47.2]} 7... Nc6 {[%clk 0:02:49.3]} 8. e4 {[%clk
0:02:47]} 8... Qa5 {[%clk 0:02:48.7]} 9. Bd2 {[%clk 0:02:46.6]} 9... Nf6 {[%clk
0:02:43.6]} 10. Bd3 {[%clk 0:02:45.9]} 10... Bc5 {[%clk 0:02:38.2]} 11. O-O
{[%clk 0:02:45.7]} 11... a6 {[%clk 0:02:36.2]} 12. Rfe1 {[%clk 0:02:43.7]} 12...
Ng4 {[%clk 0:02:34.3]} 13. Re2 {[%clk 0:02:43.3]} 13... Nge5 {[%clk 0:02:32.3]}
14. Nxe5 {[%clk 0:02:14.9]} 14... Nxe5 {[%clk 0:02:31.8]} 15. Kh1 {[%clk
0:02:13.9]} 15... Bd7 {[%clk 0:02:27.7]} 16. h3 {[%clk 0:02:12.9]} 16... Ba4
{[%clk 0:02:12.9]} 17. Qb1 {[%clk 0:02:07.9]} 17... Rd8 {[%clk 0:02:12]} 18. Bc2
{[%clk 0:01:45]} 18... Bb5 {[%clk 0:01:55.5]} 19. c4 {[%clk 0:01:34.2]} 19...
Rxd2 {[%clk 0:01:49.7]} 20. Rxd2 {[%clk 0:01:34.7]} 20... Qxd2 {[%clk
0:01:50.6]} 21. cxb5 {[%clk 0:01:34.8]} 21... O-O {[%clk 0:01:43.7]} 22. f4
{[%clk 0:01:26.5]} 22... Qxf4 {[%clk 0:01:41.1]} 0-1